{"text_format":"1","workbook":"xlsx","n_sheets":5,"sheets":["CARACTERIZAÇÃO","ORÇAMENTO","Referências","legenda","Base de dados"],"not_rendered":{"charts":0,"images":3,"macros":0,"external_links":2,"defined_names":17,"comments":0,"pivot_tables":0},"unopened":[],"bounds":{"document_bytes":16777216,"sheet_cells":100000,"rows_first":2000,"rows_last":500,"rows_between":2000,"halvings":0,"cell_chars":16384,"cell_head_chars":4096},"cells_cut":0,"cells_raw":0,"read":"whole","date_system":"1900"}

{"sheet":"CARACTERIZAÇÃO","index":0,"n_rows":307,"n_cols":14,"rows_kept":307,"cut":false,"hidden":false,"merged":[[17,2,17,3],[17,13,17,15],[14,2,14,3],[14,4,14,12],[14,13,14,15],[15,2,15,3],[15,4,15,12],[15,13,15,15],[12,2,12,3],[12,4,12,12],[12,13,12,15],[13,2,13,3],[13,4,13,12],[13,13,13,15],[18,8,19,9],[18,10,19,11],[18,13,19,14],[18,15,19,15],[277,1,277,12],[1,1,2,4],[1,5,2,6],[232,1,232,12],[249,1,249,12],[135,1,147,15],[57,1,57,15],[4,3,4,15],[6,1,6,2],[4,1,4,2],[9,1,9,2],[9,7,9,8],[6,12,6,13],[6,3,6,4],[22,1,22,15],[10,9,11,15],[21,1,21,15],[307,1,330,15],[59,1,59,15],[234,1,246,15],[126,1,126,8],[130,1,130,15],[203,1,203,12],[205,1,228,15],[279,1,302,15],[6,14,6,15],[60,1,123,15],[23,1,54,15],[304,1,305,15],[128,1,128,8],[178,1,201,15],[250,1,250,12],[133,1,133,12],[149,1,149,12],[151,1,174,15],[176,1,176,12],[132,1,132,12],[6,6,6,7],[6,8,6,9],[252,1,275,15],[18,2,19,3]]}
[]
[null,"Plano de Apoio à Produção Nacional (Base Local)"]
[]
[]
[null,"Beneficiário (Empresa)"]
[]
[null,"Dimensão da empresa",null,null,null,null,"Forma jurídica da empresa",null,null,null,null,null,"Data de início de atividade"]
[]
[null,null,null,"Nº Homens","Nº Mulheres",null,null,null,null,"Homens","Mulheres"]
[null,"Órgãos de direção/administração/gestão",null,null,null,null,null,"Salário médio*"]
[null,null,null,null,null,null,null,null,null,"* Se necessário, poderá vir a ser solicitado ao beneficiário comprovativo desta informação \n(ex.: mapa de remunerações do pessoal, por categoria)"]
[]
[null,null,"CAE (REV.3) da atividade  objeto de candidatura",null,"Designação",null,null,null,null,null,null,null,null,"Percent. (%)"]
[]
[]
[]
[]
[null,null,"«Investidor da Diáspora» *"]
[null,null,"Nacionalidade",null,"Cidadão português ",null,null,null,"País de Residência",null,null,null,null,"% Investimento no projeto"]
[null,null,null,null,"Luso-descendente"]
[null,null,"*Alínea o) do artº 2º da Portaria nº 52/2020, na sua redação atual."]
[null,"I - Caracterização do beneficiário"]
[null,"Breve historial da empresa (quando aplicável) assinalando:\n(i) O perfil dos seus sócios/fundadores, alterações ao capital social, participações e relações de grupo da empresa; (ii) Os pontos chave na evolução da sua atividade; (iii) Meios técnicos, físicos e humanos da empresa;(iv) Os principais pontos fortes e pontos fracos da empresa face aos seus concorrentes; (v) Principais clientes (máx 3000 carateres)"]
[]
[]
[]
[]
[]
[]
[]
[]
[]
[]
[]
[]
[]
[]
[]
[]
[]
[]
[]
[]
[]
[]
[]
[]
[]
[]
[]
[]
[]
[]
[]
[]
[]
[]
[null,"II - Caraterização do projeto"]
[]
[null,"Descrição do projeto, integrando os seguintes pontos: \ni) Identificação dos objetivos gerais e específicos, ii) Mercado alvo, clientes, iii) Grau de inovação e diferenciação, designadamente territorial, iv) cumprimento do principio de igualdade de oportunidades (máx 3000 carateres)"]
[]
[]
[]
[]
[]
[]
[]
[]
[]
[]
[]
[]
[]
[]
[]
[]
[]
[]
[]
[]
[]
[]
[]
[]
[]
[]
[]
[]
[]
[]
[]
[]
[]
[]
[]
[]
[]
[]
[]
[]
[]
[]
[]
[]
[]
[]
[]
[]
[]
[]
[]
[]
[]
[]
[]
[]
[]
[]
[]
[]
[]
[]
[]
[]
[]
[]
[null,"N.º de postos de trabalhos antes da apresentação da candidatura (Pré-projeto)"]
[]
[null,"Nº de postos de trabalho a manter 6 meses após o fim do apoio"]
[]
[null,"III - Auto-avaliação / Critérios de seleção"]
[]
[null,"1.     RELEVÂNCIA DOS PROJETOS, FACE AO DIAGNÓSTICO DA SITUAÇÃO DE PARTIDA E AO PRINCÍPIO DA ADICIONALIDADE, A SUA COERÊNCIA INTERNA, ESTIMATIVA DOS CUSTOS E RECURSOS ENVOLVIDOS, INDICADORES DE REALIZAÇÃO E RESULTADO E SUA ARTICULAÇÃO COM AS AÇÕES A DESENVOLVER."]
[null,"1.1. Relevância setorial"]
[null,"Justificação: (máx 1500 carateres)"]
[]
[]
[]
[]
[]
[]
[]
[]
[]
[]
[]
[]
[]
[]
[null,"1.2. Capacidade de financiamento"]
[null,"Justificação: (máx 1500 carateres)"]
[]
[]
[]
[]
[]
[]
[]
[]
[]
[]
[]
[]
[]
[]
[]
[]
[]
[]
[]
[]
[]
[]
[]
[]
[]
[null,"1.3. Maturidade do projeto"]
[null,"Justificação: (máx 1500 carateres)"]
[]
[]
[]
[]
[]
[]
[]
[]
[]
[]
[]
[]
[]
[]
[]
[]
[]
[]
[]
[]
[]
[]
[]
[]
[]
[null,"2 - Efeito dos projetos sobre a sustentabilidade do emprego relativamente a grupos especialmente carenciados (desempregados, desfavorecidos e inativos)."]
[null,"Justificação: (máx 1500 carateres)"]
[]
[]
[]
[]
[]
[]
[]
[]
[]
[]
[]
[]
[]
[]
[]
[]
[]
[]
[]
[]
[]
[]
[]
[]
[]
[]
[]
[null,"3 - Contributos dos projetos para a concretização dos indicadores de realização e de resultado dos objetivos específicos do Programa Operacional"]
[null,"Justificação:  (máx 1500 carateres)"]
[]
[]
[]
[]
[]
[]
[]
[]
[]
[]
[]
[]
[]
[]
[]
[null,"4 - Grau de inovação dos projetos – nos processo, nos produtos e serviços - face ao histórico e ao contexto sectorial e territorial "]
[null,"4.1. Investimento em fatores dinâmicos de competitividade"]
[null,"Justificação: (máx 1500 carateres)"]
[]
[]
[]
[]
[]
[]
[]
[]
[]
[]
[]
[]
[]
[]
[]
[]
[]
[]
[]
[]
[]
[]
[]
[]
[]
[null,"4.2. Enquadramento do projeto nos setores de maior ou menor Valor Acrescentado Bruto, na região"]
[null,"Justificação: (máx 1500 carateres)"]
[]
[]
[]
[]
[]
[]
[]
[]
[]
[]
[]
[]
[]
[]
[]
[]
[]
[]
[]
[]
[]
[]
[]
[]
[]
[null,"5. ALINHAMENTO DOS PROJETOS COM PLANOS DE AÇÃO E OUTROS INSTRUMENTOS DE POLÍTICA TERRITORIAL E SECTORIAL, NOMEADAMENTE OS PACTOS DE DESENVOLVIMENTO E COESÃO TERRITORIAL"]
[]
[null,"Justificação: (máx 1500 carateres)"]

{"sheet":"ORÇAMENTO","index":1,"n_rows":65,"n_cols":16,"rows_kept":65,"cut":false,"hidden":false,"merged":[[59,3,59,10],[64,0,64,15],[0,0,1,5],[0,6,1,15],[7,11,7,13],[7,14,8,14],[7,15,8,15],[7,0,8,0],[7,1,8,1],[7,2,8,2],[7,4,8,4],[7,5,7,7],[7,8,7,10],[7,3,8,3]]}
["Plano de Apoio à Produção Nacional (Base Local)"]
[]
[]
["Orçamento"]
[]
[]
[null,null,null,null,null,null,null,null,null,null,null,null,null,null,null,"Unidade: Euro"]
["Componente\n(Sistema de Informação)","Despesas Elegíveis \n(nº 1 do artigo 10º do SI2E)","Descrição da despesas","Investimento em fatores dinâmicos de competitividade","Ano da despesa","Valor do Investimento Total (sem IVA)",null,null,"IVA",null,null,"Valor de Investimento Total (com IVA)",null,null,"Método de Cálculo","Documento de Suporte"]
[null,null,null,null,null,"Elegível","Não Elegível","Total","Elegível","Não Elegível","Total","Elegível c/ IVA","Não Elegível","Total"]
["(1)","(2)","(3)","(4)",null,null,null,null,null,null,null,null,null,null,"(5)","(6)"]
[{"$f":"IF(Referências!E2=\"\",\"\",Referências!E2)","v":""},null,null,null,null,null,null,{"$f":"F11+G11","v":0},null,null,{"$f":"I11+J11","v":0},{"$f":"+F11+I11","v":0},{"$f":"+G11+J11","v":0},{"$f":"+H11+K11","v":0}]
[{"$f":"IF(Referências!E3=\"\",\"\",Referências!E3)","v":""},null,null,null,null,null,null,0,null,null,0,0,0,0]
[{"$f":"IF(Referências!E4=\"\",\"\",Referências!E4)","v":""},null,null,null,null,null,null,0,null,null,{"$f":"I13+J13","v":0},0,0,0]
[{"$f":"IF(Referências!E5=\"\",\"\",Referências!E5)","v":""},null,null,null,null,null,null,0,null,null,0,0,0,0]
[{"$f":"IF(Referências!E6=\"\",\"\",Referências!E6)","v":""},null,null,null,null,null,null,0,null,null,0,0,0,0]
[{"$f":"IF(Referências!E7=\"\",\"\",Referências!E7)","v":""},null,null,null,null,null,null,0,null,null,0,0,0,0]
[{"$f":"IF(Referências!E8=\"\",\"\",Referências!E8)","v":""},null,null,null,null,null,null,0,null,null,0,0,0,0]
[{"$f":"IF(Referências!E9=\"\",\"\",Referências!E9)","v":""},null,null,null,null,null,null,0,null,null,0,0,0,0]
[{"$f":"IF(Referências!E10=\"\",\"\",Referências!E10)","v":""},null,null,null,null,null,null,0,null,null,0,0,0,0]
[{"$f":"IF(Referências!E11=\"\",\"\",Referências!E11)","v":""},null,null,null,null,null,null,0,null,null,0,0,0,0]
[{"$f":"IF(Referências!E12=\"\",\"\",Referências!E12)","v":""},null,null,null,null,null,null,0,null,null,0,0,0,0]
[{"$f":"IF(Referências!E13=\"\",\"\",Referências!E13)","v":""},null,null,null,null,null,null,0,null,null,0,0,0,0]
[{"$f":"IF(Referências!E14=\"\",\"\",Referências!E14)","v":""},null,null,null,null,null,null,0,null,null,0,0,0,0]
[{"$f":"IF(Referências!E15=\"\",\"\",Referências!E15)","v":""},null,null,null,null,null,null,0,null,null,0,0,0,0]
[{"$f":"IF(Referências!E16=\"\",\"\",Referências!E16)","v":""},null,null,null,null,null,null,0,null,null,0,0,0,0]
[{"$f":"IF(Referências!E17=\"\",\"\",Referências!E17)","v":""},null,null,null,null,null,null,0,null,null,0,0,0,0]
[{"$f":"IF(Referências!E18=\"\",\"\",Referências!E18)","v":""},null,null,null,null,null,null,0,null,null,0,0,0,0]
[{"$f":"IF(Referências!E19=\"\",\"\",Referências!E19)","v":""},null,null,null,null,null,null,0,null,null,0,0,0,0]
[{"$f":"IF(Referências!E20=\"\",\"\",Referências!E20)","v":""},null,null,null,null,null,null,0,null,null,0,0,0,0]
[{"$f":"IF(Referências!E21=\"\",\"\",Referências!E21)","v":""},null,null,null,null,null,null,0,null,null,{"$f":"I30+J30","v":0},{"$f":"+F30+I30","v":0},0,0]
[{"$f":"IF(Referências!E22=\"\",\"\",Referências!E22)","v":""},null,null,null,null,null,null,0,null,null,{"$f":"I31+J31","v":0},0,0,0]
[{"$f":"IF(Referências!E23=\"\",\"\",Referências!E23)","v":""},null,null,null,null,null,null,0,null,null,{"$f":"I32+J32","v":0},0,0,0]
[{"$f":"IF(Referências!E24=\"\",\"\",Referências!E24)","v":""},null,null,null,null,null,null,0,null,null,{"$f":"I33+J33","v":0},{"$f":"+F33+I33","v":0},{"$f":"+G33+J33","v":0},{"$f":"+H33+K33","v":0}]
[{"$f":"IF(Referências!E25=\"\",\"\",Referências!E25)","v":""},null,null,null,null,null,null,0,null,null,0,0,0,0]
[{"$f":"IF(Referências!E26=\"\",\"\",Referências!E26)","v":""},null,null,null,null,null,null,0,null,null,0,0,0,0]
[{"$f":"IF(Referências!E27=\"\",\"\",Referências!E27)","v":""},null,null,null,null,null,null,0,null,null,0,0,0,0]
[{"$f":"IF(Referências!E28=\"\",\"\",Referências!E28)","v":""},null,null,null,null,null,null,0,null,null,0,0,0,0]
[{"$f":"IF(Referências!E29=\"\",\"\",Referências!E29)","v":""},null,null,null,null,null,null,0,null,null,0,0,0,0]
[{"$f":"IF(Referências!E30=\"\",\"\",Referências!E30)","v":""},null,null,null,null,null,null,0,null,null,0,0,0,0]
[{"$f":"IF(Referências!E31=\"\",\"\",Referências!E31)","v":""},null,null,null,null,null,null,0,null,null,{"$f":"I40+J40","v":0},{"$f":"+F40+I40","v":0},{"$f":"+G40+J40","v":0},{"$f":"+H40+K40","v":0}]
[{"$f":"IF(Referências!E32=\"\",\"\",Referências!E32)","v":""},null,null,null,null,null,null,0,null,null,0,0,0,0]
[{"$f":"IF(Referências!E33=\"\",\"\",Referências!E33)","v":""},null,null,null,null,null,null,0,null,null,0,0,0,0]
[{"$f":"IF(Referências!E34=\"\",\"\",Referências!E34)","v":""},null,null,null,null,null,null,0,null,null,0,0,0,0]
[{"$f":"IF(Referências!E35=\"\",\"\",Referências!E35)","v":""},null,null,null,null,null,null,0,null,null,0,0,0,0]
[{"$f":"IF(Referências!E36=\"\",\"\",Referências!E36)","v":""},null,null,null,null,null,null,0,null,null,0,0,0,0]
[{"$f":"IF(Referências!E37=\"\",\"\",Referências!E37)","v":""},null,null,null,null,null,null,0,null,null,0,0,0,0]
[{"$f":"IF(Referências!E38=\"\",\"\",Referências!E38)","v":""},null,null,null,null,null,null,0,null,null,0,0,0,0]
[{"$f":"IF(Referências!E39=\"\",\"\",Referências!E39)","v":""},null,null,null,null,null,null,0,null,null,0,0,0,0]
[{"$f":"IF(Referências!E40=\"\",\"\",Referências!E40)","v":""},null,null,null,null,null,null,0,null,null,0,0,0,0]
[{"$f":"IF(Referências!E41=\"\",\"\",Referências!E41)","v":""},null,null,null,null,null,null,0,null,null,0,0,0,0]
[{"$f":"IF(Referências!E42=\"\",\"\",Referências!E42)","v":""},null,null,null,null,null,null,0,null,null,0,0,0,0]
[{"$f":"IF(Referências!E43=\"\",\"\",Referências!E43)","v":""},null,null,null,null,null,null,0,null,null,0,0,0,0]
[{"$f":"IF(Referências!E44=\"\",\"\",Referências!E44)","v":""},null,null,null,null,null,null,0,null,null,0,0,0,0]
[{"$f":"IF(Referências!E45=\"\",\"\",Referências!E45)","v":""},null,null,null,null,null,null,0,null,null,0,0,0,0]
[{"$f":"IF(Referências!E46=\"\",\"\",Referências!E46)","v":""},null,null,null,null,null,null,0,null,null,0,0,0,0]
[{"$f":"IF(Referências!E47=\"\",\"\",Referências!E47)","v":""},null,null,null,null,null,null,0,null,null,0,0,0,0]
["TOTAL",null,null,null,null,{"$f":"SUM(F11:F56)","v":0},0,0,0,0,0,0,0,0]
[]
["NOTAS:"]
["(1) A informação a registar nesta coluna respeita as rubricas identificadas na estrutura de custos do formulário do BALCAO2020",null,null,"Percentagem do Investimento Em fatores Dinâmicos de Competitividade sobre o Elegível",null,null,null,null,null,null,null,{"$f":"(SUMIF($D$11:$D$56,\"SIM\",$L$11:$L$56))/L57","v":{"$error":"#DIV/0!"}}]
["(2) A informação a registar nesta coluna respeita tipologias de despesas identificadas no nº 1 do artigo 10º do SI2E"]
["(3) Breve descrição do Investimento"]
["(4)  Investimentos em Fatores Dinâmicos de Competitividade devem ser individualizados por linha, não devendo ser misturados com outro tipo de investimentos"]
["(5) Explicitar o método de cálculo utilizado, quando não esteja incluído nos documentos de suporte (preço unitário, quantidade, coeficiente de imputação, etc.). "]
["(6) Identificar os documentos de correspondentes (orçamentos, faturas proforma ou caderno de encargos). Esta documentação deverá ser arquivada no dossiê da operação da responsabilidade do beneficiário. Em sede de análise da candidatura, a entidade gestora poderá solicitar a apresentação destes comprovativos."]

{"sheet":"Referências","index":2,"n_rows":47,"n_cols":10,"rows_kept":47,"cut":false,"hidden":true,"merged":[[0,6,0,7],[0,3,0,4]]}
[null,"Forma jurídica da empresa","Componente","Alíneas Orçamento",null,null,"Equivalência alíneas"]
[null,"Empresário em Nome Individual.","Equipamento Básico",{"$f":"IF(ISNUMBER(SEARCH(\"a.\",ORÇAMENTO!B11)),LEFT(ORÇAMENTO!B11,4),LEFT(ORÇAMENTO!B11,2))","v":""},{"$f":"IF(D2=\"\",\"\",VLOOKUP(D2,G2:H11,2,FALSE))","v":""},null,"a.1)","Equipamento Básico",null,"SIM"]
[null,"Sociedade Unipessoal por Quotas","Equipamento Administrativo",{"$f":"IF(ISNUMBER(SEARCH(\"a.\",ORÇAMENTO!B12)),LEFT(ORÇAMENTO!B12,4),LEFT(ORÇAMENTO!B12,2))","v":""},"",null,"a.2)","Equipamento Administrativo",null,"NÃO"]
[null,"Estabelecimento Individual de Responsabilidade Limitada","Equipamento de Informática",{"$f":"IF(ISNUMBER(SEARCH(\"a.\",ORÇAMENTO!B13)),LEFT(ORÇAMENTO!B13,4),LEFT(ORÇAMENTO!B13,2))","v":""},"",null,"b)","Equipamento de Informática"]
[null,"Sociedade por Quotas","Software Informático",{"$f":"IF(ISNUMBER(SEARCH(\"a.\",ORÇAMENTO!B14)),LEFT(ORÇAMENTO!B14,4),LEFT(ORÇAMENTO!B14,2))","v":""},"",null,"c)","Software Informático"]
[null,"Sociedade Anónima","Investimentos Incorpóreos",{"$f":"IF(ISNUMBER(SEARCH(\"a.\",ORÇAMENTO!B15)),LEFT(ORÇAMENTO!B15,4),LEFT(ORÇAMENTO!B15,2))","v":""},"",null,"d)","Investimentos Incorpóreos"]
[null,"Sociedade em Nome Coletivo","Outras despesas ",{"$f":"IF(ISNUMBER(SEARCH(\"a.\",ORÇAMENTO!B16)),LEFT(ORÇAMENTO!B16,4),LEFT(ORÇAMENTO!B16,2))","v":""},"",null,"e)","Outras despesas "]
[null,"Sociedade em Comandita","Outros Serviços",{"$f":"IF(ISNUMBER(SEARCH(\"a.\",ORÇAMENTO!B17)),LEFT(ORÇAMENTO!B17,4),LEFT(ORÇAMENTO!B17,2))","v":""},"",null,"f)","Equipamento de Transporte"]
[null,"Cooperativa","Equipamento de Transporte",{"$f":"IF(ISNUMBER(SEARCH(\"a.\",ORÇAMENTO!B18)),LEFT(ORÇAMENTO!B18,4),LEFT(ORÇAMENTO!B18,2))","v":""},"",null,"g)","Estudos, Pareceres, Projetos e Consultoria "]
[null,null,"Estudos, Pareceres, Projetos e Consultoria ",{"$f":"IF(ISNUMBER(SEARCH(\"a.\",ORÇAMENTO!B19)),LEFT(ORÇAMENTO!B19,4),LEFT(ORÇAMENTO!B19,2))","v":""},"",null,"h)","Outros Serviços"]
[null,null,"Construções diversas",{"$f":"IF(ISNUMBER(SEARCH(\"a.\",ORÇAMENTO!B20)),LEFT(ORÇAMENTO!B20,4),LEFT(ORÇAMENTO!B20,2))","v":""},"",null,"i)","Construções diversas"]
[null,null,null,{"$f":"IF(ISNUMBER(SEARCH(\"a.\",ORÇAMENTO!B21)),LEFT(ORÇAMENTO!B21,4),LEFT(ORÇAMENTO!B21,2))","v":""},""]
[null,null,null,{"$f":"IF(ISNUMBER(SEARCH(\"a.\",ORÇAMENTO!B22)),LEFT(ORÇAMENTO!B22,4),LEFT(ORÇAMENTO!B22,2))","v":""},""]
[null,null,null,{"$f":"IF(ISNUMBER(SEARCH(\"a.\",ORÇAMENTO!B23)),LEFT(ORÇAMENTO!B23,4),LEFT(ORÇAMENTO!B23,2))","v":""},""]
[null,null,null,{"$f":"IF(ISNUMBER(SEARCH(\"a.\",ORÇAMENTO!B24)),LEFT(ORÇAMENTO!B24,4),LEFT(ORÇAMENTO!B24,2))","v":""},""]
[null,null,null,{"$f":"IF(ISNUMBER(SEARCH(\"a.\",ORÇAMENTO!B25)),LEFT(ORÇAMENTO!B25,4),LEFT(ORÇAMENTO!B25,2))","v":""},""]
[null,null,null,{"$f":"IF(ISNUMBER(SEARCH(\"a.\",ORÇAMENTO!B26)),LEFT(ORÇAMENTO!B26,4),LEFT(ORÇAMENTO!B26,2))","v":""},""]
[null,null,null,{"$f":"IF(ISNUMBER(SEARCH(\"a.\",ORÇAMENTO!B27)),LEFT(ORÇAMENTO!B27,4),LEFT(ORÇAMENTO!B27,2))","v":""},""]
[null,null,null,{"$f":"IF(ISNUMBER(SEARCH(\"a.\",ORÇAMENTO!B28)),LEFT(ORÇAMENTO!B28,4),LEFT(ORÇAMENTO!B28,2))","v":""},""]
[null,null,null,{"$f":"IF(ISNUMBER(SEARCH(\"a.\",ORÇAMENTO!B29)),LEFT(ORÇAMENTO!B29,4),LEFT(ORÇAMENTO!B29,2))","v":""},""]
[null,null,null,{"$f":"IF(ISNUMBER(SEARCH(\"a.\",ORÇAMENTO!B30)),LEFT(ORÇAMENTO!B30,4),LEFT(ORÇAMENTO!B30,2))","v":""},""]
[null,null,null,{"$f":"IF(ISNUMBER(SEARCH(\"a.\",ORÇAMENTO!B31)),LEFT(ORÇAMENTO!B31,4),LEFT(ORÇAMENTO!B31,2))","v":""},""]
[null,null,null,{"$f":"IF(ISNUMBER(SEARCH(\"a.\",ORÇAMENTO!B32)),LEFT(ORÇAMENTO!B32,4),LEFT(ORÇAMENTO!B32,2))","v":""},""]
[null,null,null,{"$f":"IF(ISNUMBER(SEARCH(\"a.\",ORÇAMENTO!B33)),LEFT(ORÇAMENTO!B33,4),LEFT(ORÇAMENTO!B33,2))","v":""},""]
[null,null,null,{"$f":"IF(ISNUMBER(SEARCH(\"a.\",ORÇAMENTO!B34)),LEFT(ORÇAMENTO!B34,4),LEFT(ORÇAMENTO!B34,2))","v":""},""]
[null,null,null,{"$f":"IF(ISNUMBER(SEARCH(\"a.\",ORÇAMENTO!B35)),LEFT(ORÇAMENTO!B35,4),LEFT(ORÇAMENTO!B35,2))","v":""},""]
[null,null,null,{"$f":"IF(ISNUMBER(SEARCH(\"a.\",ORÇAMENTO!B36)),LEFT(ORÇAMENTO!B36,4),LEFT(ORÇAMENTO!B36,2))","v":""},""]
[null,null,null,{"$f":"IF(ISNUMBER(SEARCH(\"a.\",ORÇAMENTO!B37)),LEFT(ORÇAMENTO!B37,4),LEFT(ORÇAMENTO!B37,2))","v":""},""]
[null,null,null,{"$f":"IF(ISNUMBER(SEARCH(\"a.\",ORÇAMENTO!B38)),LEFT(ORÇAMENTO!B38,4),LEFT(ORÇAMENTO!B38,2))","v":""},""]
[null,null,null,{"$f":"IF(ISNUMBER(SEARCH(\"a.\",ORÇAMENTO!B39)),LEFT(ORÇAMENTO!B39,4),LEFT(ORÇAMENTO!B39,2))","v":""},""]
[null,null,null,{"$f":"IF(ISNUMBER(SEARCH(\"a.\",ORÇAMENTO!B40)),LEFT(ORÇAMENTO!B40,4),LEFT(ORÇAMENTO!B40,2))","v":""},""]
[null,null,null,{"$f":"IF(ISNUMBER(SEARCH(\"a.\",ORÇAMENTO!B41)),LEFT(ORÇAMENTO!B41,4),LEFT(ORÇAMENTO!B41,2))","v":""},""]
[null,null,null,{"$f":"IF(ISNUMBER(SEARCH(\"a.\",ORÇAMENTO!B42)),LEFT(ORÇAMENTO!B42,4),LEFT(ORÇAMENTO!B42,2))","v":""},""]
[null,null,null,{"$f":"IF(ISNUMBER(SEARCH(\"a.\",ORÇAMENTO!B43)),LEFT(ORÇAMENTO!B43,4),LEFT(ORÇAMENTO!B43,2))","v":""},""]
[null,null,null,{"$f":"IF(ISNUMBER(SEARCH(\"a.\",ORÇAMENTO!B44)),LEFT(ORÇAMENTO!B44,4),LEFT(ORÇAMENTO!B44,2))","v":""},""]
[null,null,null,{"$f":"IF(ISNUMBER(SEARCH(\"a.\",ORÇAMENTO!B45)),LEFT(ORÇAMENTO!B45,4),LEFT(ORÇAMENTO!B45,2))","v":""},""]
[null,null,null,{"$f":"IF(ISNUMBER(SEARCH(\"a.\",ORÇAMENTO!B46)),LEFT(ORÇAMENTO!B46,4),LEFT(ORÇAMENTO!B46,2))","v":""},""]
[null,null,null,{"$f":"IF(ISNUMBER(SEARCH(\"a.\",ORÇAMENTO!B47)),LEFT(ORÇAMENTO!B47,4),LEFT(ORÇAMENTO!B47,2))","v":""},""]
[null,null,null,{"$f":"IF(ISNUMBER(SEARCH(\"a.\",ORÇAMENTO!B48)),LEFT(ORÇAMENTO!B48,4),LEFT(ORÇAMENTO!B48,2))","v":""},""]
[null,null,null,{"$f":"IF(ISNUMBER(SEARCH(\"a.\",ORÇAMENTO!B49)),LEFT(ORÇAMENTO!B49,4),LEFT(ORÇAMENTO!B49,2))","v":""},""]
[null,null,null,{"$f":"IF(ISNUMBER(SEARCH(\"a.\",ORÇAMENTO!B50)),LEFT(ORÇAMENTO!B50,4),LEFT(ORÇAMENTO!B50,2))","v":""},""]
[null,null,null,{"$f":"IF(ISNUMBER(SEARCH(\"a.\",ORÇAMENTO!B51)),LEFT(ORÇAMENTO!B51,4),LEFT(ORÇAMENTO!B51,2))","v":""},""]
[null,null,null,{"$f":"IF(ISNUMBER(SEARCH(\"a.\",ORÇAMENTO!B52)),LEFT(ORÇAMENTO!B52,4),LEFT(ORÇAMENTO!B52,2))","v":""},""]
[null,null,null,{"$f":"IF(ISNUMBER(SEARCH(\"a.\",ORÇAMENTO!B53)),LEFT(ORÇAMENTO!B53,4),LEFT(ORÇAMENTO!B53,2))","v":""},""]
[null,null,null,{"$f":"IF(ISNUMBER(SEARCH(\"a.\",ORÇAMENTO!B54)),LEFT(ORÇAMENTO!B54,4),LEFT(ORÇAMENTO!B54,2))","v":""},""]
[null,null,null,{"$f":"IF(ISNUMBER(SEARCH(\"a.\",ORÇAMENTO!B55)),LEFT(ORÇAMENTO!B55,4),LEFT(ORÇAMENTO!B55,2))","v":""},""]
[null,null,null,{"$f":"IF(ISNUMBER(SEARCH(\"a.\",ORÇAMENTO!B56)),LEFT(ORÇAMENTO!B56,4),LEFT(ORÇAMENTO!B56,2))","v":""},""]

{"sheet":"legenda","index":3,"n_rows":50,"n_cols":15,"rows_kept":50,"cut":false,"hidden":true,"merged":[[25,10,27,10],[25,12,27,12],[12,10,17,10],[12,12,17,12],[18,10,20,10],[18,12,20,12],[21,10,24,10],[21,12,24,12],[0,2,0,3],[0,5,0,6],[1,10,6,10],[1,12,6,12],[7,10,11,10],[7,12,11,12]]}
["Dimensão empresa",null,"Componentes FEDER/FC",null,null,"Despesas Elegíveis - nº 1 do artigo 10",null,null,null,null,null,"Linhas de ação","Atividades Prioritárias","Atividades Prioritárias"]
["Micro-empresa",null,null,"Equipamento Básico",null,"a.1) Custos de aquisição de máquinas, equipamentos, respetiva instalação e transporte (Básico);",null,null,"Sim",null,"Turismo","Qualificação e diferenciação dos produtos consolidados (ex: sol e mar, golfe, residencial)",". Hotelaria, com prioridade para os produtos complementares e em desenvolvimento\n. Produtos locais diferenciados \n. Animação Turística\n. Eventos internacionais com capacidade de atenuar a sazonalidade;\n. Património natural e cultural\n. Serviços e infraestruturas coletivas (com destaque para os associados à inovação e à internacionalização)\n. Outras atividades que se enquadrem na prioridade temática\n. Animação turística assente em produtos locais\n. Capacitação das PME (com destaque para a presença na web, a economia digital e as TIC, a certificação de serviços, a criaçãode marcas e design, o marketing internacional)\n. Sustentabilidade (consumir e produzir de forma sustentável)\n. Qualificação dos recursos humanos","Hotelaria, com prioridade para os produtos complementares e em desenvolvimento","Turismo"]
["Pequena empresa",null,null,"Equipamento Administrativo",null,"a.2) Custos de aquisição de máquinas, equipamentos, respetiva instalação e transporte (Administrativo);",null,null,"Não",null,null,"Diversificação e aposta em produtos complementares e em desenvolvimento (ex: Gastronomia e vinhos, Touring/ cultura/ património, Turismo de saúde, sénior/acessível)",null,"Produtos locais diferenciados "]
[null,null,null,"Equipamento de Informática",null,"b)      Custos de aquisição de equipamentos informáticos, incluindo o software necessário ao seu funcionamento;",null,null,null,null,null,"Articular a inovação ao nível do turismo com as atividades de investigação e desenvolvimento de domínios científicos e tecnológicos como os do mar, agroalimentar, energia, TIC e saúde.",null,"Animação Turística"]
[null,null,null,"Software Informático",null,"c)       Software standard ou desenvolvido especificamente para a atividade da empresa;",null,null,null,null,null,"Fomentar a I&D no domínio do Turismo",null,"Eventos internacionais com capacidade de atenuar a sazonalidade"]
[null,null,null,"Investimentos Incorpóreos",null,"d)      Custos de conceção e registo associados à criação de novas marcas ou coleções;",null,null,null,null,null,null,null,"Património natural e cultural"]
[null,null,null,"Outras despesas ",null,"e)      Custos iniciais associados à domiciliação de aplicações, adesão inicial a plataformas eletrónicas, subscrição inicial de aplicações em regimes de «software as a Service», criação e publicação inicial de novos conteúdos eletrónicos, bem como a inclusão ou catalogação em diretórios ou motores de busca;",null,null,null,null,null,null,null,"Serviços e infraestruturas coletivas (com destaque para os associados à inovação e à internacionalização)"]
[null,null,null,"Equipamento de Transporte",null,"f)       Material circulante diretamente relacionado com o exercício da atividade, até ao limite máximo elegível de 40 mil euros. ",null,null,null,null,"Mar","Qualificação e diferenciação dos segmentos tradicionais (ex: pesca, conservas, sal, construção e reparação naval)",". Pescas\n. Aquicultura\n. Transformação dos produtos do mar\n. Construção e reparação naval\n. Turismo náutico\n. Serviços e infraestruturas coletivas (com destaque para os associados à inovação e à internacionalização)\n. Outras atividades que se enquadrem na prioridade temática.\n. Turismo sol/mar (criação de produtos diferenciados)\n. Biotecnologia azul ou marinha\n. Salicultura\n. Internacionalização e capacitação das PME (com destaque para a economia digital e as TIC, a certificação de produtos, a criação de marcas e design, a distribuição e logística)","Outras atividades que se enquadrem na prioridade temática"]
[null,null,null,"Estudos, Pareceres, Projetos e Consultoria ",null,"g)      Estudos, diagnósticos, auditorias, Planos de marketing, até ao limite máximo elegível de 5 mil euros. ",null,null,null,null,null,"Diversificação e aposta em segmentos de elevado valor acrescentado (ex: aquicultura, construção naval com novos materiais e intensificação tecnológica, serviços náuticos avançados)",null,"Animação turística assente em produtos locais"]
[null,null,null,"Outros Serviços",null,"h)      Serviços tecnológicos/digitais, sistemas de qualidade e de certificação, até ao limite máximo elegível de 50 mil euros.",null,null,null,null,null,"Fomentar a I&D no domínio das Ciências do Mar visando a criação de conhecimento, bem como (i) a sua valorização nas atividades da economia do mar e (ii) uma melhor gestão dos recursos naturais associados ao mar.",null,"Capacitação das PME (com destaque para a presença na web, a economia digital e as TIC, a certificação de serviços, a criaçãode marcas e design, o marketing internacional)"]
[null,null,null,"Construções diversas",null,"i)        Obras de remodelação ou adaptação, para instalação de equipamentos produtivos financiados no âmbito deste projeto, até ao limite de 60% do investimento total elegível apurado, desde que contratadas a terceiros não relacionados com o adquirente beneficiário dos apoios, não sendo financiados materiais de construção adquiridos autonomamente.  ",null,null,null,null,null,null,null,"Sustentabilidade (consumir e produzir de forma sustentável)"]
[null,null,null,null,null,null,null,null,null,null,null,null,null,"Qualificação dos recursos humanos"]
[null,null,null,null,null,null,null,null,null,null,"Agroalimentar, Agro-transformação, floresta e Biotecnologia Verde","Continuidade e intensificação da modernização organizacional e tecnológica das produções em escala (ex: citrinos, frutos vermelhos), com um maior controlo a jusante, sobre a distribuição e comercialização",". Produção agroalimentar\n. Produção florestal\n. Indústria agroalimentar\n. Transformação da cortiça\n. Turismo rural e de natureza\n. Serviços e infraestruturas coletivas (com destaque para os associados à inovação e à internacionalização)\n. Outras atividades que se enquadrem na prioridade temática\n. Turismo “gastronomia e vinhos”\n. Biotecnologia\n. Internacionalização e capacitação das PME (com destaque para a economia digital e as TIC, a certificação de produtos, a criação de marcas e design, a distribuição e logística)","Pescas","Mar"]
[null,null,null,null,null,null,null,null,null,null,null,"Valorização económica, através da tecnologia e de novos usos, de produções vegetais em que o Algarve apresenta qualidade (p. ex., cortiça) ou exclusividade (ex: alfarroba) ",null,"Aquicultura"]
[null,null,null,null,null,null,null,null,null,null,null,"Cruzar o agroalimentar e a floresta com oportunidades geradas pela procura turística (ex: produtos “gourmet”, turismo de natureza, rural e industrial na Serra Algarvia) ",null,"Transformação dos produtos do mar"]
[null,null,null,null,null,null,null,null,null,null,null,"Fomentar a I&D no domínio do Agroalimentar ",null,"Construção e reparação naval"]
[null,null,null,null,null,null,null,null,null,null,null,null,null,"Turismo náutico"]
[null,null,null,null,null,null,null,null,null,null,null,null,null,"Serviços e infraestruturas coletivas (com destaque para os associados à inovação e à internacionalização)"]
[null,null,null,null,null,null,null,null,null,null,"TIC e Industrias Criativas e Culturais","Reforçar as competências em TIC, nomeadamente através de mais organização e mais recursos no interface universidade / industria",". Aplicações e serviços baseados em TIC\n.Tecnologias da produção baseadas em TIC\n. Aplicações e equipamentos para Smart cities\n. Indústrias criativas e multimédia\n. Serviços e infraestruturas coletivas (com destaque para os associados à inovação e à internacionalização)\n. Produção de conteúdos culturais e projetos virtuais na área cultural\n. Outras atividades que se enquadrem na prioridade temática","Outras atividades que se enquadrem na prioridade temática."]
[null,null,null,null,null,null,null,null,null,null,null,"Potenciar um cluster de TIC, desenvolvendo e alargando a base empresarial, apoiando o investimento empresarial e promovendo a articulação com a procura de proximidade gerada por todas as restantes prioridades temáticas",null,"Turismo sol/mar (criação de produtos diferenciados)"]
[null,null,null,null,null,null,null,null,null,null,null,"Dar mais enfase a promoção de atividades culturais e criativas, para além do seu cruzamento com as TIC, robustecendo a oferta cultural e promovendo atividades empresariais no domínio da criatividade e dos serviços culturais ",null,"Biotecnologia azul ou marinha"]
[null,null,null,null,null,null,null,null,null,null,"Energias renováveis","Produção em larga escala de eletricidade com origem em fontes renováveis, uma vez reunidas condições de viabilidade económica",". Produção de energia solar, de energia eólica e através da biomassa\n. Eficiência energética nos vários setores de atividade e institucionais\n. Serviços e infraestruturas coletivas (com destaque para os associados à inovação e à internacionalização)\n. Apostas inovadoras no dominio da eficiência energetica\n. Outras atividades que se enquadrem na prioridade temática","Salicultura"]
[null,null,null,null,null,null,null,null,null,null,null,"Eficiência energética, incorporando produção desconcentrada de energia a partir de fontes renováveis (solar térmico e fotovoltaico), nos diferentes setores consumidores",null,"Internacionalização e capacitação das PME (com destaque para a economia digital e as TIC, a certificação de produtos, a criação de marcas e design, a distribuição e logística)"]
[null,null,null,null,null,null,null,null,null,null,null,"Fomento da I&D na área da energia, visando a criação de conhecimento ou o Aprofundamento de competências nas energias renováveis, bem como a transferência de tecnologia para o tecido económico ",null,"Produção agroalimentar","Agroalimentar"]
[null,null,null,null,null,null,null,null,null,null,null,null,null,"Produção florestal"]
[null,null,null,null,null,null,null,null,null,null,"Saúde, Bem estar e Ciências da vida","Prioridade centrada no Turismo de Saúde e Bem-estar, articulada com o reforço do sistema de saúde, privado e público, que contribua para uma região vista como destino seguro quer em termos turísticos quer, em termos de cuidados de saúde",". Turismo de saúde e bem-estar\n. Desporto de alto rendimento\n. Serviços de saúde, de cuidados continuados e de monitorização de doentes crónicos\n. Serviços e infraestruturas coletivas (com destaque para os associados à inovação e à internacionalização)\n. Outras atividades que se enquadrem na prioridade temática","Indústria agroalimentar"]
[null,null,null,null,null,null,null,null,null,null,null,"Fomento da I&D na área das ciências da vida, com focos nos subdomínios mais diretamente associados aos setores de aplicação a privilegiar",null,"Transformação da cortiça"]
[null,null,null,null,null,null,null,null,null,null,null,"Cruzamento das tecnologias da saúde com as TIC visando responder aos desafios societais relacionados com a saúde, o envelhecimento ativo e a monitorização, vigilância e assistência à distância.",null,"Turismo rural e de natureza"]
[null,null,null,null,null,null,null,null,null,null,null,null,null,"Serviços e infraestruturas coletivas (com destaque para os associados à inovação e à internacionalização)"]
[null,null,null,null,null,null,null,null,null,null,null,null,null,"Outras atividades que se enquadrem na prioridade temática"]
[null,null,null,null,null,null,null,null,null,null,null,null,null,"Turismo “gastronomia e vinhos”"]
[null,null,null,null,null,null,null,null,null,null,null,null,null,"Biotecnologia"]
[null,null,null,null,null,null,null,null,null,null,null,null,null,"Internacionalização e capacitação das PME (com destaque para a economia digital e as TIC, a certificação de produtos, a criação de marcas e design, a distribuição e logística)"]
[null,null,null,null,null,null,null,null,null,null,null,null,null,"Aplicações e serviços baseados em TIC","TIC"]
[null,null,null,null,null,null,null,null,null,null,null,null,null,"Tecnologias da produção baseadas em TIC"]
[null,null,null,null,null,null,null,null,null,null,null,null,null,"Aplicações e equipamentos para Smart cities"]
[null,null,null,null,null,null,null,null,null,null,null,null,null,"Indústrias criativas e multimédia"]
[null,null,null,null,null,null,null,null,null,null,null,null,null,"Serviços e infraestruturas coletivas (com destaque para os associados à inovação e à internacionalização)"]
[null,null,null,null,null,null,null,null,null,null,null,null,null,"Produção de conteúdos culturais e projetos virtuais na área cultural"]
[null,null,null,null,null,null,null,null,null,null,null,null,null,"Outras atividades que se enquadrem na prioridade temática"]
[null,null,null,null,null,null,null,null,null,null,null,null,null,"Produção de energia solar, de energia eólica e através da biomassa","Energia"]
[null,null,null,null,null,null,null,null,null,null,null,null,null,"Eficiência energética nos vários setores de atividade e institucionais"]
[null,null,null,null,null,null,null,null,null,null,null,null,null,"Serviços e infraestruturas coletivas (com destaque para os associados à inovação e à internacionalização)"]
[null,null,null,null,null,null,null,null,null,null,null,null,null,"Apostas inovadoras no dominio da eficiência energetica"]
[null,null,null,null,null,null,null,null,null,null,null,null,null,"Outras atividades que se enquadrem na prioridade temática"]
[null,null,null,null,null,null,null,null,null,null,null,null,null,"Turismo de saúde e bem-estar","Saúde"]
[null,null,null,null,null,null,null,null,null,null,null,null,null,"Desporto de alto rendimento"]
[null,null,null,null,null,null,null,null,null,null,null,null,null,"Serviços de saúde, de cuidados continuados e de monitorização de doentes crónicos"]
[null,null,null,null,null,null,null,null,null,null,null,null,null,"Serviços e infraestruturas coletivas (com destaque para os associados à inovação e à internacionalização)"]
[null,null,null,null,null,null,null,null,null,null,null,null,null,"Outras atividades que se enquadrem na prioridade temática"]

{"sheet":"Base de dados","index":4,"n_rows":2,"n_cols":25,"rows_kept":2,"cut":false,"hidden":true,"merged":[]}
["Empresa","Dimensão empresa","Data de inicio de atividade","Historico","Descição projeto","Enquadramento na estratégia",{"$f":"+CARACTERIZAÇÃO!B127","v":"N.º de postos de trabalhos antes da apresentação da candidatura (Pré-projeto)"},{"$f":"+CARACTERIZAÇÃO!#REF!","v":{"$error":"#REF!"}},"A1","B1","B2","B3","Rácio D1","D1","D2","Dominio RIS 3 Regional","Linha de ação","Atividades","E","volume de negocios2016","volume de negocios2017","volume de negocios2018","volume de negocios2019","volume de negocios2020","volume de negocios2021"]
[{"$f":"+CARACTERIZAÇÃO!C5","v":0},{"$f":"+CARACTERIZAÇÃO!D7","v":0},{"$f":"+CARACTERIZAÇÃO!O7","v":"00:00:00"},{"$f":"+CARACTERIZAÇÃO!B24","v":0},{"$f":"+CARACTERIZAÇÃO!B61","v":0},{"$f":"+CARACTERIZAÇÃO!#REF!","v":{"$error":"#REF!"}},{"$f":"+CARACTERIZAÇÃO!J127","v":0},{"$f":"+CARACTERIZAÇÃO!#REF!","v":{"$error":"#REF!"}},{"$f":"+CARACTERIZAÇÃO!B235","v":0},{"$f":"+CARACTERIZAÇÃO!B136","v":0},{"$f":"+CARACTERIZAÇÃO!B253","v":0},{"$f":"+CARACTERIZAÇÃO!#REF!","v":{"$error":"#REF!"}},{"$f":"+CARACTERIZAÇÃO!#REF!","v":{"$error":"#REF!"}},{"$f":"+CARACTERIZAÇÃO!B308","v":0},{"$f":"+CARACTERIZAÇÃO!#REF!","v":{"$error":"#REF!"}},{"$f":"+CARACTERIZAÇÃO!#REF!&CARACTERIZAÇÃO!#REF!&CARACTERIZAÇÃO!#REF!&CARACTERIZAÇÃO!#REF!&CARACTERIZAÇÃO!#REF!&CARACTERIZAÇÃO!#REF!","v":{"$error":"#REF!"}},{"$f":"+CARACTERIZAÇÃO!#REF!&\";\"&CARACTERIZAÇÃO!#REF!&\";\"&CARACTERIZAÇÃO!#REF!&\";\"&CARACTERIZAÇÃO!#REF!&\";\"&CARACTERIZAÇÃO!#REF!&\";\"&CARACTERIZAÇÃO!#REF!","v":{"$error":"#REF!"}},{"$f":"+CARACTERIZAÇÃO!#REF!&\";\"&CARACTERIZAÇÃO!#REF!&\";\"&CARACTERIZAÇÃO!#REF!&\";\"&CARACTERIZAÇÃO!#REF!&\";\"&CARACTERIZAÇÃO!#REF!&\";\"&CARACTERIZAÇÃO!#REF!","v":{"$error":"#REF!"}},{"$f":"+CARACTERIZAÇÃO!#REF!","v":{"$error":"#REF!"}},{"$f":"+#REF!","v":{"$error":"#REF!"}},{"$f":"+#REF!","v":{"$error":"#REF!"}},{"$f":"+#REF!","v":{"$error":"#REF!"}},{"$f":"+#REF!","v":{"$error":"#REF!"}},{"$f":"+#REF!","v":{"$error":"#REF!"}},{"$f":"+#REF!","v":{"$error":"#REF!"}}]